Cogmind - Beta 13 X1 @@@ ROGUE MODE // 2023.07.13 @ 14:23:48 Player: biogoob Result: Destroyed by P-80 Master with Gamma Rifle Performance ------------- Evolutions (8) 4000 Regions Visited (19) 3800 Robots Destroyed (148) 740 Value Destroyed (5428) 5428 Prototype IDs (42) 840 Alien Tech Used (0) 0 Bonus (6008) 6008 TOTAL SCORE: 20816 Bonus ------- High Alert Combat Kills 190 Follower Combat Kills 2762 Met Data Miner 300 Built Enhanced Grunts 300 A7 Reached Mainframe 300 Met R17 at Cetus 500 Met R17 at Research 2000 Friendly Fire -344 Cogmind --------- Core Integrity 0/1450 Matter 73/300 Energy 98/100 System Corruption 27% Temperature Cool (9) Movement Core (50) Location -2/Testing Parts ------- > --- POWER (2) -------- (None) > --- PROPULSION (6) --- (None) > --- UTILITY (12) ----- (None) > --- WEAPON (3) ------- (None) > --- INVENTORY (5) ---- Heavy Gauss Cannon Gamma Bomb Array Plasma Lance Peak State ------------ > --- POWER ------------ Mini Fusion Reactor Micro Antimatter Reactor > --- PROPULSION ------- Diametric Drive Q-thruster Q-thruster Impulse Thruster Array Improved Q-thruster > --- UTILITY ---------- Advanced Heat Sink Medium Storage Unit Advanced Sensor Array Improved Melee Analysis Suite Advanced Melee Analysis Suite Armor Integrity Analyzer Advanced Reaction Control System Advanced Hacking Suite Advanced Hacking Suite Advanced System Shield Experimental System Shield > --- WEAPON ----------- Chainsword Vibroblade Kinetic Spear > --- INVENTORY -------- Xenon Bombardment Thruster Xenon Bombardment Thruster Xenon Bombardment Thruster Advanced Sensor Array Layered Medium Armor Plating Graphene Brace Experimental Focal Shield Compact HERF Cannon Compact HERF Cannon Gamma Bomb Array [Rating: 148] Favorites ----------- Power Light Angular Momentum Engine Engine Light Angular Momentum Engine Power Core Fission Core Reactor Light Antimatter Reactor Propulsion Armored Wheel Treads Armored Medium Treads Leg Carbon-fiber Leg Wheel Armored Wheel Hover Unit Antigrav Array Flight Unit Xenon Bombardment Thruster Utility Advanced Targeting Computer Device Advanced Sensor Array Storage Large Storage Unit Processor Advanced Targeting Computer Hackware Experimental System Shield Protection Centrium Medium Armor Plating Weapon Precision Beam Rifle Energy Gun Precision Beam Rifle Energy Cannon Compact HERF Cannon Ballistic Gun Hypervelocity Coil Gun Ballistic Cannon Omega Cannon Launcher Missile Launcher Slashing Weapon Chainsword Piercing Weapon Kinetic Spear Build | -11 -10 -9 -9 -8 -7 -7 -7 -7 -6 -6 -6 -6 -6 -6 -5 -4 -3 -2 -2 ------- Run | Jun Mat Mat Sto Mat Fac Low Low Dat Pro Fac Ext Cet Arc Hub Fac Fac Res Res Tes Slots Evolved 16 | . . 2 . 2 2 . . . . 2 . . . . 2 2 2 2 . Power 1 | . . . . . . . . . . . . . . . 1 . . . . Propulsion 4 | . . . . 1 1 . . . . 1 . . . . . . 1 . . Utility 10 | . . 1 . 1 1 . . . . 1 . . . . 1 2 1 2 . Weapon 1 | . . 1 . . . . . . . . . . . . . . . . . Parts Attached 266 | . 13 13 8 12 19 5 6 . 14 20 24 10 1 3 9 18 61 17 13 Power 26 | . . 3 . . 1 . . . 2 1 3 . . . 2 2 6 3 3 Engine 12 | . . 3 . . 1 . . . 2 1 3 . . . 1 1 . . . Core 2 | . . . . . . . . . . . . . . . 1 1 . . . Reactor 12 | . . . . . . . . . . . . . . . . . 6 3 3 Propulsion 70 | . 6 5 2 2 6 1 1 . 3 3 7 1 . . 2 6 18 4 3 Treads 21 | . 6 2 . . 3 . . . . 2 . . . . . 6 2 . . Leg 16 | . . . . . . . . . 2 1 7 1 . . 2 . . . 3 Wheel 13 | . . 3 2 2 3 1 1 . 1 . . . . . . . . . . Hover 1 | . . . . . . . . . . . . . . . . . 1 . . Flight 19 | . . . . . . . . . . . . . . . . . 15 4 . Utility 122 | . 5 2 4 5 10 3 4 . 6 12 12 4 1 3 4 7 29 9 2 Device 54 | . 1 1 2 2 4 2 1 . 4 5 5 . 1 1 2 2 16 4 1 Storage 10 | . 2 . . 1 1 . . . . . 2 . . 1 . . 2 . 1 Processor 21 | . 1 . 1 2 2 . . . . 2 2 . . . 1 2 5 3 . Hackware 7 | . . . . . . . . . . 1 . . . . . . 5 1 . Protection 30 | . 1 1 1 . 3 1 3 . 2 4 3 4 . 1 1 3 1 1 . Artifact . | . . . . . . . . . . . . . . . . . . . . Weapon 48 | . 2 3 2 5 2 1 1 . 3 4 2 5 . . 1 3 8 1 5 Energy Gun 18 | . 2 3 2 4 1 . . . 1 . . 1 . . 1 1 2 . . Energy Cannon 3 | . . . . . . . . . 1 . . . . . . . 2 . . Ballistic Gun 8 | . . . . . . . . . . 3 . 3 . . . 2 . . . Ballistic Cannon 4 | . . . . . . . . . . . . 1 . . . . . . 3 Launcher 3 | . . . . 1 . 1 . . 1 . . . . . . . . . . Special Weapon . | . . . . . . . . . . . . . . . . . . . . Impact Weapon . | . . . . . . . . . . . . . . . . . . . . Slashing Weapon 8 | . . . . . 1 . 1 . . 1 2 . . . . . 3 . . Piercing Weapon 4 | . . . . . . . . . . . . . . . . . 1 1 2 Special Melee Weapon . | . . . . . . . . . . . . . . . . . . . . Unidentified Prototypes 24 | . . 1 . 1 1 . . . 1 . 1 3 . . . . 10 1 5 Corrupted Parts 3 | . . . . . . . . . 1 . . 1 . . 1 . . . . System Corruption 7 | . . . . . . . . . 2 . . 3 . . 2 . . . . Parts Lost 48 | . . 2 2 . . . 1 . 7 . . 4 . . . 7 2 22 1 Power 6 | . . . . . . . . . 1 . . . . . . 1 1 2 1 Propulsion 13 | . . . . . . . 1 . 2 . . . . . . 1 1 8 . Utility 14 | . . . . . . . . . 2 . . 1 . . . 1 . 10 . Weapon 15 | . . 2 2 . . . . . 2 . . 3 . . . 4 . 2 . Highest Loss Streak 10 | . . 1 2 . . . 1 . 6 . . 4 . . . 6 1 10 1 To Critical Strikes 2 | . . . . . . . . . . . . . . . . 1 . 1 . Average Slot Usage (%) 93 | . 99 93 99 98 100 99 91 92 90 94 99 98 100 100 99 92 72 78 42 Engine 6 | . 14 10 11 9 7 7 7 7 7 6 6 6 6 6 5 2 . . . Treads 6 | . 27 12 . . 11 14 . . . 2 4 . . . . 22 . . . Leg 9 | . . . . . . . . . 9 13 19 33 33 33 29 1 . . 6 Wheel 8 | . . 9 22 26 18 15 22 23 12 13 9 . . . . . . . . Flight 1 | . . . . . . . . . . . . . . . . . 17 19 . Device 8 | . 9 6 18 16 12 6 5 . 13 5 4 . 4 4 10 9 14 8 3 Storage 8 | . 14 11 11 9 7 7 7 7 7 6 10 13 13 13 8 4 3 3 3 Processor 13 | . 2 . 1 10 8 15 15 15 15 21 22 13 13 13 11 17 10 13 12 Hackware 1 | . . . . . . . . . . 1 . . . . . . 8 15 7 Protection 4 | . . 13 1 . 8 7 8 15 . 3 . 12 7 8 7 10 . . . Energy Gun 10 | . 28 28 32 25 22 15 15 15 21 5 . 5 6 6 5 4 . . . Ballistic Gun 5 | . . . . . . . . . . 13 13 12 13 13 11 9 . . . Slashing Weapon 1 | . . . . . . 2 4 7 . . 6 . . . . . 1 4 . Naked Turns 86 | . . . . . . . . . . . . . . . . 69 . . 17 Heaviest Build 83 | 12 30 39 44 37 50 53 53 48 63 68 64 71 68 68 79 83 48 48 58 Greatest Support 145 | 20 40 40 24 36 48 52 52 52 40 43 91 91 91 91 91 135 145 48 80 Greatest Overweight (x) 3 | . . 3 1 1 1 2 1 . 3 2 2 . . . . 3 3 3 2 Average Overweight (x) . | . . . 1 . . 1 . . 1 1 1 . . . . . . . . Largest Inventory Capacity 15 | . 15 15 15 15 15 15 15 15 15 15 15 15 15 15 15 15 10 10 5 Average Capacity 13 | . 8 15 15 13 12 15 15 15 15 15 15 15 15 15 15 14 7 8 5 Most Carried 15 | . 11 15 15 15 15 15 15 15 15 15 15 15 15 15 15 15 10 10 5 Average Carried 12 | . 7 13 14 12 10 14 14 15 14 14 14 14 15 14 14 14 7 8 3 Final Capacity 15 | 8 15 15 15 10 15 15 15 15 15 15 15 15 15 15 15 5 10 5 5 Final Carried 15 | 6 11 14 15 10 15 15 15 15 15 15 15 15 15 14 15 5 10 5 3 Class Distribution -------------------- 29% | Mutant 14% | Scavenger-Mutant 11% | Commander-Mutant 10% | Gunner 7% | Scavenger-Gunner 5% | Hacker-Sprinter 4% | Scavenger-Skirmisher 4% | Scavenger-Tank 3% | Tank Dominant Class ---------------- Mutant | -10/Materials Tank | -9/Materials Commander-Gunner | -9/Storage Gunner | -8/Materials Gunner | -7/Factory Mutant | -7/Lower Caves Mutant | -7/Lower Caves Mutant | -7/Data Miner Scavenger-Gunner | -6/Proximity Caves Scavenger-Gunner | -6/Factory Commander-Mutant | -6/Extension Scavenger-Tank | -6/Cetus Scavenger-Skirmisher | -6/Archives Scavenger-Skirmisher | -6/Hub_04(d) Scavenger-Mutant | -5/Factory Scavenger-Mutant | -4/Factory Hacker-Sprinter | -3/Research Hacker-Sprinter | -2/Research Hacker-Mutant | -2/Testing Resources | -11 -10 -9 -9 -8 -7 -7 -7 -7 -6 -6 -6 -6 -6 -6 -5 -4 -3 -2 -2 ----------- Run | Jun Mat Mat Sto Mat Fac Low Low Dat Pro Fac Ext Cet Arc Hub Fac Fac Res Res Tes Matter Collected 4368 | 200 352 122 93 150 170 96 86 . 135 232 915 183 101 183 190 236 787 92 45 Remotely . | . . . . . . . . . . . . . . . . . . . . Salvage Created 7077 | . 353 483 195 426 256 255 294 . 568 392 1371 240 285 124 195 831 613 89 107 Parts 347 | . 27 37 17 20 4 6 11 . 7 20 54 15 14 11 12 47 32 8 5 Haulers Intercepted . | . . . . . . . . . . . . . . . . . . . . Recyclers Shooed 6 | . . 2 . . . . . . . 1 1 . . . 2 . . . . Parts Field Recycled . | . . . . . . . . . . . . . . . . . . . . Retrieved Matter . | . . . . . . . . . . . . . . . . . . . . Parts Self-Destructed 34 | . . . . . . 6 9 . 19 . . . . . . . . . . Prevented 2 | . . . . . . 1 . . 1 . . . . . . . . . . Kills | -11 -10 -9 -9 -8 -7 -7 -7 -7 -6 -6 -6 -6 -6 -6 -5 -4 -3 -2 -2 ------- Run | Jun Mat Mat Sto Mat Fac Low Low Dat Pro Fac Ext Cet Arc Hub Fac Fac Res Res Tes Combat Hostiles Destroyed 107 | . 7 13 5 13 4 6 7 . 8 3 12 3 1 1 4 9 9 . 2 Melee 9 | . . . . . . . . . . . . . . . . . 9 . . Guns 78 | . 5 11 5 7 4 4 4 . 6 3 12 2 1 1 4 9 . . . Cannons 4 | . . . . . . . . . 1 . . 1 . . . . . . 2 AOE 15 | . 2 2 . 6 . 2 3 . . . . . . . . . . . . Classes Destroyed 14 | . 4 3 1 . . 1 2 . 2 . 1 . . . . . . . . Worker 9 | . . . 1 . . . . . . . . . . 3 . 3 1 . 1 Builder 5 | . . 1 . . . . . . . . 1 . . . . 3 . . . Tunneler 1 | . 1 . . . . . . . . . . . . . . . . . . Recycler 9 | . . 1 . 1 . . . . . 1 3 . . . . 1 2 . . Minesweeper 1 | . . . . . . . . . 1 . . . . . . . . . . Operator 5 | . . . . . . . . . . . 1 . 4 . . . . . . Watcher 9 | . 3 1 1 . . . . . . 1 1 . . . . . . 2 . Swarmer 36 | . 2 9 3 8 . . . . 1 . . . . . 2 2 9 . . Grunt 37 | . 5 . . 5 . 4 4 . 5 . 9 . . 1 . 2 . . 2 Brawler 1 | . . . . . . 1 . . . . . . . . . . . . . Duelist 2 | . . . . . . . . . 1 . . . . . 1 . . . . Sentry 21 | . . 4 2 1 4 1 . . 1 2 3 . 1 . 1 1 . . . Hunter 2 | . . . . . . . 2 . . . . . . . . . . . . Programmer 6 | . . . . . . . 1 . . 1 . . . . . 4 . . . Cetus Guard 3 | . . . . . . . . . . . . 3 . . . . . . . Guerrilla 1 | . . . . . . . . . . . . . 1 . . . . . . Best Kill Streak 7 | . 5 7 5 7 1 5 4 . 4 2 3 3 3 2 2 7 6 1 3 Combat Bots Only 7 | . 2 7 3 7 1 5 4 . 4 1 3 3 1 1 2 3 5 . 2 Max Kills in Single Turn 3 | . 2 2 2 3 1 2 2 . 1 1 1 1 1 1 1 2 1 1 1 Gunslinging 1 | . . . . 1 . 1 . . . . . . . . . . . . . Exploded 2 | . 1 1 . 2 . 1 2 . . . . . . . . . . . . Melee 1 | . . . . . . . . . . . . . . . . . 1 . . Uniques/NPCs Destroyed . | . . . . . . . . . . . . . . . . . . . . Combat | -11 -10 -9 -9 -8 -7 -7 -7 -7 -6 -6 -6 -6 -6 -6 -5 -4 -3 -2 -2 -------- Run | Jun Mat Mat Sto Mat Fac Low Low Dat Pro Fac Ext Cet Arc Hub Fac Fac Res Res Tes Damage Taken 14534 | . 504 477 322 306 516 184 575 . 931 219 803 330 46 389 454 4136 713 2687 942 Core 3359 | . 153 79 73 41 55 51 72 . 128 21 169 53 . 55 56 734 155 863 601 Absorbed by Shields 132 | . . . . . . . . . . . 25 107 . . . . . . . Ignored by Resistances 52 | . . . . . . . . . 6 46 . . . . . . . . . Regen/Repaired (Parts) 48 | . . . 48 . . . . . . . . . . . . . . . . Core Remaining (%) 70 | 100 38 . 62 92 . . . . 56 . . . . 64 94 36 88 . . Volleys Fired 321 | . 35 25 18 16 11 12 15 . 24 11 54 11 16 10 16 40 2 . 5 Largest 3 | . 2 3 3 3 3 2 2 . 3 3 2 3 3 3 2 2 1 . 1 Hottest 240 | . 100 145 150 183 202 122 122 . 191 98 70 150 150 150 70 240 94 . 100 Shots Fired 703 | . 70 63 41 37 33 22 28 . 66 33 102 18 43 31 32 76 2 . 6 Gun 679 | . 70 63 41 34 33 20 26 . 60 33 102 14 43 31 32 76 1 . . Cannon 16 | . . . . . . . . . 5 . . 4 . . . . 1 . 6 Launcher 8 | . . . . 3 . 2 2 . 1 . . . . . . . . . . Special . | . . . . . . . . . . . . . . . . . . . . Kinetic 310 | . . . . . . . . . . 33 102 16 32 21 32 68 . . 6 Thermal 291 | . 40 26 24 34 33 20 26 . 60 . . 2 11 10 . 4 1 . . Explosive 8 | . . . . 3 . 2 2 . 1 . . . . . . . . . . Electromagnetic 94 | . 30 37 17 . . . . . 5 . . . . . . 4 1 . . Robot Hit Streak 94 | . 7 22 9 12 20 36 20 . 79 94 19 8 6 4 11 18 1 . 6 Robot Miss Streak 6 | . 6 5 5 2 1 1 1 . . 2 5 2 3 3 4 3 1 . . Penetration Max 1 | . . . . . . . . . . 1 1 . 1 . 1 1 . . . Secondary Targets 14 | . 1 1 1 2 . 1 1 . 1 . 1 2 . 1 1 1 . . . Max Gunslinging Chain 1 | . 1 1 1 1 . 1 1 . 1 . 1 1 . 1 1 1 . . . Shots Hit Robots 517 | . 42 42 22 24 28 19 21 . 59 28 70 14 24 20 20 60 16 3 5 Core Hits 273 | . 18 25 9 21 13 13 17 . 22 11 40 10 14 5 9 31 10 3 2 Critical Kills 32 | . . . . . . . . . . 5 17 2 3 1 . 4 . . . Critical Parts Destroyed 40 | . . . . . . . . . . 5 12 1 5 2 3 12 . . . Critical Strikes 103 | . 2 3 1 4 1 4 2 . 8 10 29 3 8 3 3 17 4 . 1 Burn 24 | . 1 3 1 4 1 4 2 . 8 . . . . . . . . . . Destroy 73 | . . . . . . . . . . 10 29 3 8 3 3 17 . . . Blast 1 | . . . . . . . . . . . . . . . . . . . 1 Corrupt 1 | . 1 . . . . . . . . . . . . . . . . . . Impale 4 | . . . . . . . . . . . . . . . . . 4 . . Melee Attacks 70 | . . . . . 1 . 2 . . 1 10 . . . . . 22 33 1 Impact . | . . . . . . . . . . . . . . . . . . . . Slashing 24 | . . . . . 1 . 2 . . 1 10 . . . . . . 10 . Piercing 46 | . . . . . . . . . . . . . . . . . 22 23 1 Sneak Attacks 3 | . . . . . . . . . . . 1 . . . . . 2 . . Combat Hostiles . | . . . . . . . . . . . . . . . . . . . . Follow-up Attacks 1 | . . . . . . . . . . . . . . . . . . 1 . Damage Inflicted 12514 | . 824 653 320 720 529 684 637 . 1257 368 662 241 743 630 559 2144 801 245 497 Guns 9000 | . 519 556 311 388 529 306 383 . 955 368 566 124 743 630 559 2063 . . . Cannons 748 | . . . . . . . . . 92 . . 117 . . . . 42 . 497 Explosions 1626 | . 305 97 . 332 . 378 254 . 210 . . . . . . 50 . . . Melee 1095 | . . . . . . . . . . . 96 . . . . . 759 240 . Ramming 45 | . . . 9 . . . . . . . . . . . . 31 . 5 . Kinetic 5171 | . . . . . . . . . . 368 566 223 584 409 559 1965 . . 497 Thermal 4145 | . 554 314 189 388 529 306 383 . 955 . . 18 159 221 . 129 . . . Explosive 1174 | . . . . 332 . 378 254 . 210 . . . . . . . . . . Electromagnetic 884 | . 270 339 122 . . . . . 92 . . . . . . 19 42 . . Impact . | . . . . . . . . . . . . . . . . . . . . Slashing 239 | . . . . . . . . . . . 96 . . . . . . 143 . Piercing 856 | . . . . . . . . . . . . . . . . . 759 97 . Highest Corruption 27 | . . . . 1 . . 1 1 3 . 2 5 5 5 2 3 8 26 27 Average Corruption 5 | . . . . 1 . . 1 1 2 . 2 4 5 5 2 2 5 16 26 Corruption Purged . | . . . . . . . . . . . . . . . . . . . . Corruption Blocked 6 | . . . . . . . . . . . . . . . . 6 . . . Effects 79 | . . . . . . . 1 . 14 . 12 10 6 5 . 3 7 6 15 Message Errors 14 | . . . . . . . . . 3 . 2 1 1 1 . 1 1 1 3 Matter Fused 23 | . . . . . . . . . 2 . 4 4 2 1 . 1 3 2 4 Heat Flow Errors 9 | . . . . . . . . . 1 . 2 . 1 1 . . 2 . 2 Energy Discharges 12 | . . . . . . . . . 4 . 2 1 2 . . 1 . 1 1 Parts Rejected 1 | . . . . . . . . . . . . . . . . . . . 1 Parts Fused 2 | . . . . . . . . . 1 . . . . . . . . 1 . Data Loss (minor) 8 | . . . . . . . 1 . 2 . 1 1 . 1 . . 1 . 1 Data Loss (major) 2 | . . . . . . . . . 1 . 1 . . . . . . . . Misfires 3 | . . . . . . . . . . . . 1 . 1 . . . . 1 Alerts 1 | . . . . . . . . . . . . 1 . . . . . . . Misdirections 3 | . . . . . . . . . . . . . . . . . . 1 2 Weapon Failures 1 | . . . . . . . . . . . . 1 . . . . . . . Overload Shots 1 | . . . . . . . . . . . . . . . . 1 . . . Overflow Damage 460 | . 2 8 . . . . . . 1 . 66 . . . . . 223 43 117 Projectiles 117 | . . . . . . . . . . . . . . . . . . . 117 Explosions 11 | . 2 8 . . . . . . 1 . . . . . . . . . . Melee 332 | . . . . . . . . . . . 66 . . . . . 223 43 . Knockbacks 2 | . . . . . . . . . . . . . . . . . . . 2 Impact . | . . . . . . . . . . . . . . . . . . . . Kinetic 2 | . . . . . . . . . . . . . . . . . . . 2 Secondary . | . . . . . . . . . . . . . . . . . . . . Self-Inflicted Damage 188 | . 55 55 4 . . . 19 . 39 . . . . . . 14 . 2 . Shots 6 | . 2 2 . . . . 1 . 1 . . . . . . . . . . Rammed 16 | . . . 1 . . . . . . . . . . . . 12 . 3 . Targets Rammed 16 | . . . 1 . . . . . . . . . . . . 12 . 3 . Kicked . | . . . . . . . . . . . . . . . . . . . . Crushed . | . . . . . . . . . . . . . . . . . . . . Highest Temperature 424 | . 424 294 141 223 252 324 339 . 381 82 272 114 266 420 . 160 311 171 212 Average Temperature 106 | . 120 118 36 92 105 128 128 . 132 24 51 32 136 177 . 71 87 80 57 Received Heat Transfer 1867 | . 201 81 84 63 168 45 117 . 366 57 238 . . 72 54 222 . 54 45 Effects 8 | . 5 . . . . . . . 2 . . . . 1 . . . . . Shutdowns 3 | . 1 . . . . . . . 1 . . . . 1 . . . . . Energy Bleed 1 | . . . . . . . . . 1 . . . . . . . . . . Interference 2 | . 2 . . . . . . . . . . . . . . . . . . Matter Decay 1 | . 1 . . . . . . . . . . . . . . . . . . Short Circuit 1 | . 1 . . . . . . . . . . . . . . . . . . Siege Activations . | . . . . . . . . . . . . . . . . . . . . Robots Corrupted . | . . . . . . . . . . . . . . . . . . . . Combat Hostiles . | . . . . . . . . . . . . . . . . . . . . Parts Fried 3 | . . 1 . . . . . . . . . . 1 . . . 1 . . Impact Corruptions . | . . . . . . . . . . . . . . . . . . . . Robots Melted 2 | . . . . . . . . . 2 . . . . . . . . . . Combat Hostiles 1 | . . . . . . . . . 1 . . . . . . . . . . Parts Melted 37 | . 3 . 3 3 9 1 6 . 10 2 . . . . . . . . . Heat Transferred 10532 | . 1264 951 629 1221 1237 962 925 . 2664 . . 37 222 259 . 161 . . . Parts Sabotaged . | . . . . . . . . . . . . . . . . . . . . Parts Stolen . | . . . . . . . . . . . . . . . . . . . . Parts Stripped . | . . . . . . . . . . . . . . . . . . . . Power Chain Reactions 7 | . 4 3 . . . . . . . . . . . . . . . . . Missiles Intercepted . | . . . . . . . . . . . . . . . . . . . . Alert | -11 -10 -9 -9 -8 -7 -7 -7 -7 -6 -6 -6 -6 -6 -6 -5 -4 -3 -2 -2 ------- Run | Jun Mat Mat Sto Mat Fac Low Low Dat Pro Fac Ext Cet Arc Hub Fac Fac Res Res Tes Peak Influence 759 | . 203 488 489 482 302 . . . . 175 759 754 546 694 428 236 238 370 287 Initial 404 | . . 61 121 100 219 . . . . . 11 404 262 191 332 68 123 38 168 Average 209 | . 91 207 280 241 162 . . . . 53 239 562 476 361 290 90 139 184 216 Maximum Alert Level 3 | . 1 2 2 2 1 . . . . . 3 3 2 2 2 1 1 1 1 Low Security (%) 58 | . 97 54 25 38 62 . . . . 100 60 . . 13 10 98 74 50 44 Level 1 25 | . 2 34 50 50 37 . . . . . 12 . 12 47 84 1 25 50 55 Level 2 14 | . . 10 23 11 . . . . . . 22 97 87 39 4 . . . . Level 3 1 | . . . . . . . . . . . 4 2 . . . . . . . Level 4 . | . . . . . . . . . . . . . . . . . . . . Level 5 . | . . . . . . . . . . . . . . . . . . . . High Security . | . . . . . . . . . . . . . . . . . . . . Max Security . | . . . . . . . . . . . . . . . . . . . . Squads Dispatched 34 | . 2 1 3 1 2 . . . . 5 3 . . 4 1 3 5 3 1 Investigation 8 | . . . . 1 1 . . . . 1 . . . 1 . 1 3 . . Extermination 6 | . . . . . 1 . . . . 1 . . . . 1 2 . . 1 Reinforcement 16 | . 2 1 3 . . . . . . . 2 . . 3 . . 2 3 . Assault 1 | . . . . . . . . . . . 1 . . . . . . . . Garrison 3 | . . . . . . . . . . 3 . . . . . . . . . Intercept . | . . . . . . . . . . . . . . . . . . . . Searches Triggered . | . . . . . . . . . . . . . . . . . . . . Construction Impeded 1 | . . . . . . . . . . . 1 . . . . . . . . Haulers Reinforced 1 | . . . . . . . . . . . . . . . . . 1 . . Active Scanning Responses . | . . . . . . . . . . . . . . . . . . . . Cargo Convoy Interrupts . | . . . . . . . . . . . . . . . . . . . . Stealth | -11 -10 -9 -9 -8 -7 -7 -7 -7 -6 -6 -6 -6 -6 -6 -5 -4 -3 -2 -2 --------- Run | Jun Mat Mat Sto Mat Fac Low Low Dat Pro Fac Ext Cet Arc Hub Fac Fac Res Res Tes Distress Signals 19 | . 3 . 2 . . . . . . . 2 2 . . . 3 5 2 . Communications Jammed . | . . . . . . . . . . . . . . . . . . . . Distress Signals . | . . . . . . . . . . . . . . . . . . . . Times Spotted 318 | . 18 23 18 17 5 11 7 . 11 8 45 15 9 13 5 41 23 36 13 Peak Tracking Total 18 | . 5 10 5 8 1 7 4 . 7 3 7 5 2 5 3 18 6 15 8 Tactical Retreats 31 | . 4 1 1 2 1 . . . . 1 2 . . . . 5 4 8 2 Traps | -11 -10 -9 -9 -8 -7 -7 -7 -7 -6 -6 -6 -6 -6 -6 -5 -4 -3 -2 -2 ------- Run | Jun Mat Mat Sto Mat Fac Low Low Dat Pro Fac Ext Cet Arc Hub Fac Fac Res Res Tes Traps Triggered 11 | . 1 . 1 . 2 . . . . . 3 . . . 2 . 1 . 1 Indirectly . | . . . . . . . . . . . . . . . . . . . . Trap Hack Attempts . | . . . . . . . . . . . . . . . . . . . . Triggered . | . . . . . . . . . . . . . . . . . . . . Disarmed . | . . . . . . . . . . . . . . . . . . . . Reprogrammed . | . . . . . . . . . . . . . . . . . . . . Reused . | . . . . . . . . . . . . . . . . . . . . Traps Extracted . | . . . . . . . . . . . . . . . . . . . . Installed . | . . . . . . . . . . . . . . . . . . . . Triggered 3 | . . . . . . . . . 3 . . . . . . . . . . Machines | -11 -10 -9 -9 -8 -7 -7 -7 -7 -6 -6 -6 -6 -6 -6 -5 -4 -3 -2 -2 ---------- Run | Jun Mat Mat Sto Mat Fac Low Low Dat Pro Fac Ext Cet Arc Hub Fac Fac Res Res Tes Machines Disabled 22 | . 1 1 . 1 . . . . . . 3 2 3 1 2 7 . . 1 Max in Single Turn 4 | . 1 1 . 1 . . . . . . 1 . 1 . 1 4 . . 1 Garrison Access 4 | . . . . . 1 . . . . 1 . . . . . . 1 1 . Machines Repaired . | . . . . . . . . . . . . . . . . . . . . Machines Sabotaged . | . . . . . . . . . . . . . . . . . . . . Overloaded Fab Kills . | . . . . . . . . . . . . . . . . . . . . Hacking | -11 -10 -9 -9 -8 -7 -7 -7 -7 -6 -6 -6 -6 -6 -6 -5 -4 -3 -2 -2 --------- Run | Jun Mat Mat Sto Mat Fac Low Low Dat Pro Fac Ext Cet Arc Hub Fac Fac Res Res Tes Machines Accessed 65 | . 4 1 8 2 8 . . 4 . 4 5 3 1 2 4 7 5 5 2 Terminals 35 | . 4 1 6 1 4 . . . . 1 4 3 . 1 2 2 1 3 2 Fabricators 8 | . . . . . 3 . . . . 1 . . . . . 2 2 . . Repair Stations 2 | . . . 1 . . . . . . . . . . . 1 . . . . Recycling Units 9 | . . . 1 1 . . . . . . 1 . . . 1 3 1 1 . Scanalyzers 1 | . . . . . . . . . . 1 . . . . . . . . . Garrison Access 5 | . . . . . 1 . . . . 1 . . . 1 . . 1 1 . Total Hacks 205 | . 16 2 23 4 21 . . 29 . 10 17 8 25 5 6 11 8 13 7 Successful 111 | . 8 . 10 1 3 . . 29 . 5 12 2 25 1 3 5 2 4 1 Failed 94 | . 8 2 13 3 18 . . . . 5 5 6 . 4 3 6 6 9 6 Catastrophic 23 | . 1 . 3 2 2 . . . . 2 . 4 . 1 2 2 2 2 . Database Lockouts . | . . . . . . . . . . . . . . . . . . . . Manual 55 | . 8 2 3 . 16 . . . . 1 4 1 3 . 1 7 2 5 2 Terminals 97 | . 16 2 18 2 10 . . . . 1 13 8 . 3 4 4 2 7 7 Fabricators 21 | . . . . . 10 . . . . 3 . . . . . 4 4 . . Repair Stations 4 | . . . 3 . . . . . . . . . . . 1 . . . . Recycling Units 16 | . . . 2 2 . . . . . . 4 . . . 1 3 1 3 . Scanalyzers 5 | . . . . . . . . . . 5 . . . . . . . . . Garrison Access 8 | . . . . . 1 . . . . 1 . . . 2 . . 1 3 . Terminal Hacks 86 | . 7 . 7 1 . . . 29 . . 9 2 25 1 2 1 . 1 1 Record 40 | . . . . . . . . 11 . . 2 2 25 . . . . . . Part Schematic 11 | . . . . . . . . 11 . . . . . . . . . . . Robot Schematic 4 | . . . . . . . . 4 . . . . . . . . . . . Robot Analysis 2 | . 1 . . . . . . . . . 1 . . . . . . . . Prototype ID Bank 7 | . 1 . 1 . . . . 3 . . 1 . . . 1 . . . . Open Door 3 | . . . 2 . . . . . . . 1 . . . . . . . . Branch Access Points 4 | . 1 . 1 . . . . . . . . . . . . 1 . . 1 Emergency Access Points 2 | . . . 1 . . . . . . . . . . 1 . . . . . Recycling Unit Index 1 | . 1 . . . . . . . . . . . . . . . . . . Alert Level 2 | . . . . . . . . . . . 1 . . . . . . 1 . Unreport Threat 1 | . . . 1 . . . . . . . . . . . . . . . . Locate Traps 2 | . 1 . . . . . . . . . 1 . . . . . . . . Maintenance Status 1 | . . . . . . . . . . . 1 . . . . . . . . Security Status 1 | . . . . . . . . . . . 1 . . . . . . . . Transport Status 1 | . 1 . . . . . . . . . . . . . . . . . . Zone Layout 4 | . 1 . 1 1 . . . . . . . . . . 1 . . . . Fabricator Hacks 3 | . . . . . . . . . . 2 . . . . . . 1 . . Load Schematic 1 | . . . . . . . . . . 1 . . . . . . . . . Build 2 | . . . . . . . . . . 1 . . . . . . 1 . . Repair Station Hacks 2 | . . . 2 . . . . . . . . . . . . . . . . Scan Component 1 | . . . 1 . . . . . . . . . . . . . . . . Repair 1 | . . . 1 . . . . . . . . . . . . . . . . Recycling Unit Hacks 9 | . . . . . . . . . . . 3 . . . 1 3 . 2 . Report Inventory 4 | . . . . . . . . . . . 2 . . . . 2 . . . Retrieve Components 5 | . . . . . . . . . . . 1 . . . 1 1 . 2 . Scanalyzer 2 | . . . . . . . . . . 2 . . . . . . . . . Insert Component 1 | . . . . . . . . . . 1 . . . . . . . . . Analyze 1 | . . . . . . . . . . 1 . . . . . . . . . Garrison Access Hacks 4 | . . . . . 1 . . . . 1 . . . . . . 1 1 . Seal Access 4 | . . . . . 1 . . . . 1 . . . . . . 1 1 . Unauthorized Hacks 5 | . 1 . 1 . 2 . . . . . . . . . . 1 . . . Terminals 3 | . 1 . 1 . 1 . . . . . . . . . . . . . . Track 1 | . . . . . 1 . . . . . . . . . . . . . . Assimilate 1 | . . . 1 . . . . . . . . . . . . . . . . Botnet 1 | . 1 . . . . . . . . . . . . . . . . . . Fabricators 2 | . . . . . 1 . . . . . . . . . . 1 . . . Fabnet 2 | . . . . . 1 . . . . . . . . . . 1 . . . Repair Stations . | . . . . . . . . . . . . . . . . . . . . Recycling Units . | . . . . . . . . . . . . . . . . . . . . Scanalyzers . | . . . . . . . . . . . . . . . . . . . . Garrison Access . | . . . . . . . . . . . . . . . . . . . . Data Cores Recovered . | . . . . . . . . . . . . . . . . . . . . Used . | . . . . . . . . . . . . . . . . . . . . Hacking Detections 48 | . 4 1 6 2 7 . . . . 3 4 3 . 2 4 4 3 3 2 Full Trace Events 5 | . . . 2 1 . . . . . 1 . . . . . 1 . . . Feedback Events 1 | . . . . 1 . . . . . . . . . . . . . . . Corruption 1 | . . . . 1 . . . . . . . . . . . . . . . Feedback Blocked . | . . . . . . . . . . . . . . . . . . . . Robot Schematics Acquired 4 | . . . . . . . . 4 . . . . . . . . . . . Robots Built . | . . . . . . . . . . . . . . . . . . . . Authchips . | . . . . . . . . . . . . . . . . . . . . Time . | . . . . . . . . . . . . . . . . . . . . Total Robot Build Rating . | . . . . . . . . . . . . . . . . . . . . Part Schematics Acquired 12 | . . . . . . . . 11 . 1 . . . . . . . . . Parts Built 3 | . . . . . . . . . . 2 . . . . . . 1 . . Authchips . | . . . . . . . . . . . . . . . . . . . . Time 217 | . . . . . . . . . . 106 . . . . . . 111 . . Total Part Build Rating 21 | . . . . . . . . . . 12 . . . . . . 9 . . Parts Repaired 1 | . . . 1 . . . . . . . . . . . . . . . . Time 32 | . . . 32 . . . . . . . . . . . . . . . . Parts Recycled . | . . . . . . . . . . . . . . . . . . . . Recycled Matter . | . . . . . . . . . . . . . . . . . . . . Retrieved Matter . | . . . . . . . . . . . . . . . . . . . . Retrieved Components 5 | . . . . . . . . . . . 1 . . . 2 2 . . . Parts Scanalyzed 1 | . . . . . . . . . . 1 . . . . . . . . . Part Schematics Acquired 1 | . . . . . . . . . . 1 . . . . . . . . . Parts Damaged . | . . . . . . . . . . . . . . . . . . . . Bothacking | -11 -10 -9 -9 -8 -7 -7 -7 -7 -6 -6 -6 -6 -6 -6 -5 -4 -3 -2 -2 ------------ Run | Jun Mat Mat Sto Mat Fac Low Low Dat Pro Fac Ext Cet Arc Hub Fac Fac Res Res Tes Used RIF Installer . | . . . . . . . . . . . . . . . . . . . . Robots Hacked 5 | . . . . . . . . . 1 . 1 1 . . . . 2 . . Non-combat . | . . . . . . . . . . . . . . . . . . . . Combat 5 | . . . . . . . . . 1 . 1 1 . . . . 2 . . Robot Hacks Applied . | . . . . . . . . . . . . . . . . . . . . Relay Couplers Released . | . . . . . . . . . . . . . . . . . . . . Fabnet Peak Effective % 3 | . . . . . . . . . 3 3 3 3 3 3 1 . 3 1 1 Autooverrided 5 | . . . . . . . . . 1 . 1 1 . . . . 2 . . Robots Rewired 17 | . . . . . . 2 . . 2 . 13 . . . . . . . . Allies Hacked . | . . . . . . . . . . . . . . . . . . . . Hacks Repelled . | . . . . . . . . . . . . . . . . . . . . Allies | -11 -10 -9 -9 -8 -7 -7 -7 -7 -6 -6 -6 -6 -6 -6 -5 -4 -3 -2 -2 -------- Run | Jun Mat Mat Sto Mat Fac Low Low Dat Pro Fac Ext Cet Arc Hub Fac Fac Res Res Tes Total Allies 51 | . . . 10 . . 2 . . 4 . 27 6 . . . . 2 . . Largest Group 13 | . . . 10 5 . 2 . . 2 . 13 7 7 4 . . 1 . . Highest-Rated Group 662 | . . . 88 47 . 36 . . 116 . 522 662 648 384 . . 47 . . Highest-Rated Ally 159 | . . . 16 16 . 20 . . 96 . 159 143 143 96 . . 47 . . Total Orders 2 | . . . . . . . . . . . 2 . . . . . . . . STAY 1 | . . . . . . . . . . . 1 . . . . . . . . FOLLOW 1 | . . . . . . . . . . . 1 . . . . . . . . Ally Attacks 448 | . . . 45 18 . 7 . . 22 . 217 68 19 49 . . 3 . . Total Damage 10706 | . . . 406 191 . 139 . . 924 . 4417 1901 716 1978 . . 34 . . Kills 79 | . . . 7 1 . 1 . . 7 . 36 12 3 12 . . . . . Allies Corrupted . | . . . . . . . . . . . . . . . . . . . . Allies Melted . | . . . . . . . . . . . . . . . . . . . . Intel | -11 -10 -9 -9 -8 -7 -7 -7 -7 -6 -6 -6 -6 -6 -6 -5 -4 -3 -2 -2 ------- Run | Jun Mat Mat Sto Mat Fac Low Low Dat Pro Fac Ext Cet Arc Hub Fac Fac Res Res Tes Robot Analysis Total 2 | . 1 . . . . . . . . . 1 . . . . . . . . Derelict Logs Recovered 5 | . . . . . . 2 1 . 2 . . . . . . . . . . Drone Launches . | . . . . . . . . . . . . . . . . . . . . Drone Recoveries . | . . . . . . . . . . . . . . . . . . . . Exploration | -11 -10 -9 -9 -8 -7 -7 -7 -7 -6 -6 -6 -6 -6 -6 -5 -4 -3 -2 -2 ------------- Run | Jun Mat Mat Sto Mat Fac Low Low Dat Pro Fac Ext Cet Arc Hub Fac Fac Res Res Tes Turns Passed 13618 | . 799 497 594 283 1136 655 472 73 800 928 2814 469 311 188 896 969 1105 326 303 Spaces Moved 10705 | 1 402 276 418 199 924 492 436 79 480 583 1781 341 210 121 651 514 1802 724 271 Core 441 | . . . . . . . . . . . . . . . . 108 190 3 140 Treads 1029 | . 402 134 . . 105 . . . . . . . . . . 385 3 . . Legs 2348 | 1 . . . . . . . . 77 29 766 341 210 121 651 21 . . 131 Wheels 4557 | . . 142 418 199 819 492 436 79 403 554 1015 . . . . . . . . Hover 15 | . . . . . . . . . . . . . . . . . 15 . . Flight 2315 | . . . . . . . . . . . . . . . . . 1594 721 . Fastest Speed 23 | 120 160 105 105 90 90 93 93 93 105 105 105 120 120 120 120 50 28 23 50 Average Speed 97 | 120 160 131 105 98 106 105 93 93 133 112 123 120 120 120 120 143 32 29 85 Slowest Speed 410 | 120 160 160 105 105 245 120 110 93 260 190 260 120 120 120 120 410 330 280 190 Overloaded Moves . | . . . . . . . . . . . . . . . . . . . . Propulsion Burnouts . | . . . . . . . . . . . . . . . . . . . . Robots Hopped 32 | . . . . . . . . . . . . . . . . . 26 6 . Cave-ins Triggered 3 | . . . . . . . . . . . . . . . . . . 3 . Exploration Rate (%) 47 | 2 78 27 71 25 22 57 60 68 65 13 95 87 98 21 17 15 55 29 49 Regions Visited 19 Branch Regions 10 Pre-discovered Areas 2 | . . . . . . . . 1 1 . . . . . . . . . . Known Exits Taken 7 | . . . . . . . . . . 1 1 1 1 1 1 . . 1 . Unknown Exits Taken 12 | 1 1 1 1 1 1 1 1 1 1 . . . . . . 1 1 . . Scrap Searched 15 | . . . . . . 11 2 . 2 . . . . . . . . . . Spaces Dug 41 | . . . . . 1 . 2 . . 1 10 . . . . 3 2 21 1 Terrain Destroyed 171 | . 12 8 . 20 1 15 26 . 9 3 15 2 13 6 5 12 2 21 1 Melee 36 | . . . . . 1 . 2 . . 1 9 . . . . . 2 21 . Projectile 39 | . . . . . . . . . . . . 2 13 6 5 12 . . 1 AOE 88 | . 12 8 . 20 . 15 24 . 9 . . . . . . . . . . Terrain Rammed . | . . . . . . . . . . . . . . . . . . . . Walls Destroyed . | . . . . . . . . . . . . . . . . . . . . Machines Disabled . | . . . . . . . . . . . . . . . . . . . . Actions | -11 -10 -9 -9 -8 -7 -7 -7 -7 -6 -6 -6 -6 -6 -6 -5 -4 -3 -2 -2 --------- Run | Jun Mat Mat Sto Mat Fac Low Low Dat Pro Fac Ext Cet Arc Hub Fac Fac Res Res Tes Total 13076 | . 490 356 540 255 1051 606 470 78 585 832 2288 386 233 142 734 670 2248 777 335 Wait 1147 | . 23 27 82 14 62 45 8 . 35 196 167 15 7 6 50 64 332 . 14 Move 10622 | . 401 275 417 198 923 491 435 78 479 582 1780 340 209 120 650 513 1751 709 271 Hop 29 | . . . . . . . . . . . . . . . . . 23 6 . Pick Up 95 | . 6 4 6 6 10 3 2 . 5 7 14 3 . . 4 8 12 2 3 Fast Attach 126 | . 7 8 2 7 6 1 . . 3 7 10 4 . . 1 6 44 10 10 Attach 46 | . 3 2 2 3 2 . 1 . 5 1 1 1 . 1 1 6 8 6 3 Detach 47 | . 5 4 . 4 4 . . . . 2 2 . . 1 . 2 14 5 4 Swap 94 | . 3 3 4 2 11 4 5 . 6 12 13 5 1 2 7 6 9 1 . Drop 163 | . 7 8 7 5 13 6 2 . 2 13 29 7 . 2 5 13 30 5 9 Fire 321 | . 35 25 18 16 11 12 15 . 24 11 54 11 16 10 16 40 2 . 5 Melee 65 | . . . . . 1 . 2 . . 1 10 . . . . . 22 28 1 Ram 16 | . . . 1 . . . . . . . . . . . . 12 . 3 . Kick . | . . . . . . . . . . . . . . . . . . . . Crush . | . . . . . . . . . . . . . . . . . . . . Escape Stasis 55 | . . . . . 8 . . . . . 29 . . . . . 1 2 15 Rewire 250 | . . . 1 . . 44 . . 26 . 179 . . . . . . . . Trap . | . . . . . . . . . . . . . . . . . . . . Miscellaneous . | . . . . . . . . . . . . . . . . . . . . Route ------- -11/Junkyard -10/Materials (discovered 2 exits: *Mat / *Min) -9/Materials -9/Storage (discovered 2 exits: *Mat / Rec) -8/Materials -7/Factory -7/Lower Caves -7/Lower Caves -7/Data Miner -6/Proximity Caves -6/Factory (discovered 2 exits: [*Low] / *Ext) -6/Extension (discovered 3 exits: *Fac x2 / *Cet) -6/Cetus (discovered 2 exits: *Fac / *Arc) -6/Archives (discovered 3 exits: *Fac / *Hub x2) -6/Hub_04(d) (discovered 2 exits: *Fac x2) -5/Factory -4/Factory (discovered 4 exits: *Res / Upp x2 / Arm) -3/Research (discovered 2 exits: *Res / [*Qua]) -2/Research -2/Testing History --------- Turn | Location | Event 1 | -11/Junkyard | Discovered new exit (range 0) 1 | -11/Junkyard | Entered Materials 259 | -10/Materials | Core integrity fell below 50% 282 | -10/Materials | Discovered new exit (range 14) 315 | -10/Materials | Build established: Mutant 637 | -10/Materials | Identified exit to Mines 707 | -10/Materials | Discovered new exit (range 11) 800 | -10/Materials | Entered another Materials area 800 | -9/Materials | Evolved 2 slots: Utility x1, Weapon x1 1167 | -9/Materials | Destroyed 7 combat bots 1279 | -9/Materials | Discovered new exit (range 6) 1297 | -9/Materials | Entered Storage 1507 | -9/Storage | Assisted by bots powering up and referring to "LRC-V3" 1742 | -9/Storage | Identified exit to Recycling 1799 | -9/Storage | Discovered new exit (range 16) 1873 | -9/Storage | Repaired Arm. Wheel 1891 | -9/Storage | Entered Materials 1891 | -8/Materials | Accompanied by 5 allies 1891 | -8/Materials | Evolved 2 slots: Propulsion x1, Utility x1 2037 | -8/Materials | Destroyed 7 combat bots 2159 | -8/Materials | Discovered new exit (range 10) 2174 | -8/Materials | Entered Factory 2174 | -7/Factory | Evolved 2 slots: Propulsion x1, Utility x1 2319 | -7/Factory | Build established: Gunner 3193 | -7/Factory | Discovered new exit (range 15) 3310 | -7/Factory | Entered Lower Caves 3381 | -7/Lower Caves | Spotted B-75 Beast 3397 | -7/Lower Caves | Encountered a Warlord checkpoint 3453 | -7/Lower Caves | Learned Factory garrison access intel 3518 | -7/Lower Caves | Attracted the attention of an 0b10 outpost 3594 | -7/Lower Caves | Learned Factory emergency access door positions 3602 | -7/Lower Caves | Build established: Mutant 3780 | -7/Lower Caves | Attracted the attention of an 0b10 checkpoint 3933 | -7/Lower Caves | Discovered new exit (range 5) 3965 | -7/Lower Caves | Entered another Lower Caves area 3965 | -7/Lower Caves | Accompanied by 1 ally 4124 | -7/Lower Caves | Learned Factory stockpile data 4154 | -7/Lower Caves | Encountered a Warlord checkpoint 4284 | -7/Lower Caves | Discovered new exit (range 11) 4372 | -7/Lower Caves | Ambushed by research squad 4437 | -7/Lower Caves | Entered Data Miner 4437 | -7/Data Miner | Discovered new exit (range 6) 4455 | -7/Data Miner | Met Data Miner 4481 | -7/Data Miner | Learned location of Section 7 (-3) 4481 | -7/Data Miner | Acquired the access code to Warlord's prototype stash 4490 | -7/Data Miner | Received God Mode back door access code from Data Miner 4510 | -7/Data Miner | Entered Proximity Caves 4583 | -6/Proximity Caves | Lost 6 parts (1p1n2u2w) 4632 | -6/Proximity Caves | Escorted by Enhanced Grunt 4975 | -6/Proximity Caves | Learned location of Zion (-6) 5148 | -6/Proximity Caves | Attracted the attention of an 0b10 checkpoint 5301 | -6/Proximity Caves | Discovered new exit (range 8) 5310 | -6/Proximity Caves | Entered Factory 5310 | -6/Factory | Evolved 2 slots: Propulsion x1, Utility x1 5311 | -6/Factory | Identified exit to Extension 5314 | -6/Factory | Loaded intel: 3 garrison access locations 5354 | -6/Factory | Discovered new exit (range 3) 5501 | -6/Factory | Fabricated Hyp. Coil Gun? 5872 | -6/Factory | Build established: Scavenger-Gunner 5884 | -6/Factory | Garrison activated, responded to threat 6238 | -6/Factory | Entered Extension 6326 | -6/Extension | Rescued a captive Derelict 6391 | -6/Extension | Build established: Mutant 6622 | -6/Extension | Rescued a captive Derelict 6689 | -6/Extension | Rescued a captive Derelict 6690 | -6/Extension | Rescued a captive Derelict 7514 | -6/Extension | Spotted B-75 Beast 7533 | -6/Extension | Build established: Commander-Mutant 7561 | -6/Extension | Spotted B-75 Beast 7577 | -6/Extension | Allies destroyed B-75 Beast 7624 | -6/Extension | Rescued a captive Derelict 7625 | -6/Extension | Rescued a captive Derelict 7872 | -6/Extension | Rescued a captive Derelict 7872 | -6/Extension | Rescued a captive Derelict 7924 | -6/Extension | Rescued a captive Derelict 7925 | -6/Extension | Rescued a captive Derelict 8034 | -6/Extension | Rescued A7 8354 | -6/Extension | Rescued a captive Derelict 8357 | -6/Extension | Rescued a captive Derelict 8688 | -6/Extension | First assault squad dispatched 8775 | -6/Extension | Discovered new exit (range 3) 8777 | -6/Extension | Identified exit to Factory 8863 | -6/Extension | Disrupted transfer network 9015 | -6/Extension | Discovered new exit (range 16) 9017 | -6/Extension | Discovered exit to Factory (range 14) 9038 | -6/Extension | Identified exit to Cetus 9052 | -6/Extension | Entered Cetus 9052 | -6/Cetus | Accompanied by 3 allies (A7) 9057 | -6/Cetus | Acquired a Cetus Manufacturing Module code from A7 9069 | -6/Cetus | Spotted Cetus Guard 9069 | -6/Cetus | Spotted Cetus Guard 9071 | -6/Cetus | Destroyed Cetus Guard 9071 | -6/Cetus | Spotted Cetus Guard 9074 | -6/Cetus | Destroyed Cetus Guard 9075 | -6/Cetus | Spotted Cetus Guard 9087 | -6/Cetus | Destroyed Cetus Guard 9099 | -6/Cetus | Allies destroyed Cetus Guard 9116 | -6/Cetus | Lost 4 parts (1u3w) 9205 | -6/Cetus | Started Cetus Manufacturing Module 9230 | -6/Cetus | Manufactured an Enhanced Grunt 9255 | -6/Cetus | Manufactured an Enhanced Grunt 9280 | -6/Cetus | Manufactured an Enhanced Grunt 9305 | -6/Cetus | Manufactured an Enhanced Grunt 9310 | -6/Cetus | Escorted A7 to Cetus Mainframe 9330 | -6/Cetus | Manufactured an Enhanced Grunt 9387 | -6/Cetus | Discovered new exit (range 16) 9404 | -6/Cetus | Identified exit to Archives 9415 | -6/Cetus | Build established: Scavenger-Tank 9429 | -6/Cetus | Spotted Cetus Guard 9429 | -6/Cetus | Spotted Cetus Guard 9440 | -6/Cetus | Spotted Cetus Guard 9445 | -6/Cetus | Allies destroyed Cetus Guard 9448 | -6/Cetus | Spotted Cetus Guard 9451 | -6/Cetus | Allies destroyed Cetus Guard 9452 | -6/Cetus | Allies destroyed Cetus Guard 9466 | -6/Cetus | Discovered exit to Factory (range 15) 9473 | -6/Cetus | Met Revision 17 9521 | -6/Cetus | Entered Archives 9521 | -6/Archives | Accompanied by 7 allies (A7) 9530 | -6/Archives | Received a hacking code to weaken MAIN.C 9579 | -6/Archives | Discovered exit to Factory (range 15) 9591 | -6/Archives | Unable to access archive contents 9603 | -6/Archives | Unable to access archive contents 9615 | -6/Archives | Unable to access archive contents 9617 | -6/Archives | Discovered new exit (range 15) 9700 | -6/Archives | Discovered new exit (range 13) 9811 | -6/Archives | Unable to access archive contents 9830 | -6/Archives | Identified exit to Hub_04(d) 9832 | -6/Archives | Entered Hub_04(d) 9832 | -6/Hub_04(d) | Accompanied by 4 allies 9884 | -6/Hub_04(d) | Build established: Scavenger-Skirmisher 10008 | -6/Hub_04(d) | Discovered exit to Factory (range 9) 10012 | -6/Hub_04(d) | Spotted B-75 Beast 10020 | -6/Hub_04(d) | Discovered exit to Factory (range 9) 10020 | -6/Hub_04(d) | Entered Factory 10020 | -5/Factory | Evolved 2 slots: Power x1, Utility x1 10567 | -5/Factory | Build established: Scavenger-Mutant 10744 | -5/Factory | Spotted B-75 Beast 10814 | -5/Factory | Discovered new exit (range 16) 10887 | -5/Factory | Identified exit to Factory 10916 | -5/Factory | Entered another Factory area 10916 | -4/Factory | Evolved 2 slots: Utility x2 11816 | -4/Factory | Released all parts (15) 11845 | -4/Factory | Lost 6 parts (1p1n1u3w) 11863 | -4/Factory | Identified exit to Upper Caves 11863 | -4/Factory | Identified exit to Armory 11870 | -4/Factory | Discovered new exit (range 14) 11878 | -4/Factory | Core integrity fell below 50% 11885 | -4/Factory | Entered Research 11885 | -3/Research | Evolved 2 slots: Propulsion x1, Utility x1 11910 | -3/Research | Found Prototype Device 11910 | -3/Research | Identified Exp. Thermal Shield 11946 | -3/Research | Found Prototype Hackware 11946 | -3/Research | Identified Exp. System Shield 12078 | -3/Research | Build established: Mutant 12085 | -3/Research | Revision forces began assault on 0b10 12120 | -3/Research | Met up with Revision 17++ 12287 | -3/Research | Fabricated Imp. Q-thruster (x1) 12364 | -3/Research | Spotted B-86 Titan 12433 | -3/Research | Local machine network offline 12438 | -3/Research | Build established: Scavenger-Sprinter 12460 | -3/Research | Found Gamma Bomb Array 12536 | -3/Research | Spotted B-86 Titan 12585 | -3/Research | Research terminal network offline 12621 | -3/Research | Discovered new exit (range 15) 12703 | -3/Research | Found Prototype Processor 12703 | -3/Research | Identified Exp. Target Analyzer 12712 | -3/Research | Spotted Striker 12766 | -3/Research | Spotted Striker 12803 | -3/Research | Build established: Hacker-Sprinter 12812 | -3/Research | Found Prototype Slashing Weapon 12812 | -3/Research | Identified Vibroblade 12815 | -3/Research | Found Vibroblade 12865 | -3/Research | Discovered new exit (range 9) 12867 | -3/Research | Found Prototype Device 12867 | -3/Research | Identified Imp. Particle Accelerator 12907 | -3/Research | Found Prototype Device 12907 | -3/Research | Identified Exp. Focal Shield 12990 | -3/Research | Entered another Research area 12990 | -2/Research | Evolved 2 slots: Utility x2 13132 | -2/Research | Spotted B-90 Cyclops 13134 | -2/Research | Lost 5 parts (1p1n3u) 13198 | -2/Research | Crushed by falling debris 13204 | -2/Research | Crushed by falling debris 13228 | -2/Research | Crushed by falling debris 13228 | -2/Research | System corruption reached 10% 13259 | -2/Research | Lost 7 parts (3n3u1w) 13304 | -2/Research | Discovered new exit (range 6) 13314 | -2/Research | Identified exit to Testing 13315 | -2/Research | Core integrity fell below 50% 13316 | -2/Research | Entered Testing 13345 | -2/Testing | Lost 10 parts (1p4n4u1w) 13376 | -2/Testing | Found Prototype Ballistic Cannon 13376 | -2/Testing | Identified Omega Cannon 13602 | -2/Testing | Released all parts (11) 13611 | -2/Testing | Core integrity fell below 20% 13619 | -2/Testing | Destroyed by P-80 Master with Gamma Rifle Last Messages --------------- 13602_ Released Myomer Leg. 13602_ Released Adv. Visual Processing Unit. 13602_ Released Adv. Signal Interpreter. 13602_ Released Machine Analyzer. 13602_ Released Exp. System Shield. 13602_ Released Adv. Hacking Suite. 13602_ Released Graphene Brace. 13602_ Released Exp. Energy Well. 13602_ Released Cld. Antimatter Reactor. 13602_ Released Centrium Leg. 13603_ Slug penetrates Wall. 13607_ R-10 Processor collects Exp. Energy Well. 13607_ P-80 Master resets P-80 Master, system corruption cleaned. 13608_ P-80 Master resets A-15 Conveyor, system corruption cleaned. 13610_ Penetrated by Slug. 13615_ System corrupted: Component data lost. 13617_ Penetrated by Slug. 13617_ Slug penetrates Wall. 13617_ Penetrated by Slug. 13618_ R-10 Processor collects Centrium Leg. Map ----- +----------------------------------------------------+ | #????"R """"" #????"""""""??????????????????? | | #????""" """"" #????"""""""??????????????????? | | #????""" #?????????????????????????????? | | ######## """ #?????????????????????????????? | | # """ #?"""?????????????????????????? | | # """ #?"F"?????????????????????????? | | # = +?"???????????????????????????? | | # !%! #?"""?????????????????????????? | | # #### ##### #?"""?????????????????????????? | | # #?? ???# #?????????????????????????????? | | # #? ???# #?##########+##???????????????? | | # # """" ??# #?# #???????????????? | | # # """" ??# #?# #???????????????? | | # + """" ?# #?# #???????????????? | | # # """" ?# #?# #???????????????? | | # # """" ## k #?# ########???????????????? | | # # ## #?# * #??#####???????????????? | | # #?"""" ## ###R! =#? ???????????????? | | #?"""" ## R R #? """ "???????????????? | | #?""""? ## # """ "???????????????? | | #?""""? ## # """ ""#?????????????? | | #?""""???# + S#?????????????? | | ######????????######## # """ ""#?????????????? | | ?????????????????????# A # """ "???????????????? | | ?????????????????????# g #? """ "???????????????? | | ?????????????????????#hh @#? ???????????????? | | ??????????########???# #??#####???????????????? | | ????????###"""T"""#??# g #??????????????????????? | | ????????# [!! ??# #??????????????????????? | | ????????# [! ?# pp#??????????????????????? | | ######### [! [?# p#??????????????????????? | | # # ####???????????????????? | | * # # #???????????????????? | | * # + #???????????????????? | | * # # #???????????????????? | | # = # #???????????????????? | | * # ?# ####???????????????????? | | # ?# #??????????????????????? | | # ??# #??????????????????????? | | # ??# #??????????????????????? | | ##########???# #??????????????????????? | | #????????????# #??????????????????????? | | #????????????# #??????????????????????? | | #????????????######??????????????????????? | | #????????????????????????????????????????? | | #????????????????????????????????????????? | | #"F ""###????????????????????????????????????????? | | #"""""#??????????????????????????????????????????? | | #"""""#??????????????????????????????????????????? | | #######??????????????????????????????????????????? | +----------------------------------------------------+ Best States ------------- Heat Dissipation 68 Coolant Potential 50 Energy Generation 45 Energy Capacity 1070 Matter Stores 600 Matter Capacity 600 Sight Range 20 Robot Scan Range 16 Terrain Scan Range 20 Terrain Scan Density 10 ECM Strength 2 Power Amplification 40 EM Shielding 2 Corruption Block 6 Armor Coverage 675 Resistance: KI 30 Resistance: TH 30 Resistance: EM 25 Phase Shifting 5 Evasion (%) 76 Targeting Accuracy 16 Melee Accuracy 16 Core Analysis 6 Armor Integrity Analysis 30 Recoil Reduction 5 Offensive Hacking 28 Defensive Hacking 42 Authchip Count 1 Item Schematics ----------------- Combat Drone Bay | -7/Data Miner | Free Lgt. Regenerative Plating | -7/Data Miner | Free Cld. Aerolev Unit | -7/Data Miner | Free Gravity Neutralizer | -7/Data Miner | Free Gui. EMP Blaster | -7/Data Miner | Free Field Propulsion Drive | -7/Data Miner | Free Adv. Trap Extractor | -7/Data Miner | Free Hvy. Shock Bomb Launcher | -7/Data Miner | Free Angular Momentum Engine | -7/Data Miner | Free Matter Neutralizer | -7/Data Miner | Free Hyp. Coil Gun | -7/Data Miner | Free Chainsword | -6/Factory | Scanalyzed Robot Schematics ------------------ M-14 Sweeper | -7/Data Miner | Free R-10 Processor | -7/Data Miner | Free M-28 Smith | -7/Data Miner | Free A-15 Conveyor | -7/Data Miner | Free Fabricated ------------ Hyp. Coil Gun | x2 | -6/Factory Imp. Q-thruster | x1 | -3/Research | Preloaded Alien Tech Used ----------------- None Achievements -------------- Generalissimo Main Advantage Project G-00 Revising The Future Revolutionary Research Challenges ------------ None Game ------ Seed HeavyAlloyDatajack Manual? 0 Play Time 03:06:09 Cumulative 146.9 hours Start 2023.07.13 @ 02:45:02 End 2023.07.13 @ 14:23:48 Sessions 3 Manual Loads 0 Difficulty Rogue Special Mode None Game No. 162 Rogue 139 Adventurer 19 Explorer 4 Win Type - Total 1 Types 0/0/1/0/0/0/0/0/0 Lore% 52 Gallery% 60 Achievement% 49 Wizard Run 0 Options --------- ASCII 1 Keyboard 1 Movement Vi Keybinds 0 Fullscreen 1 Font 18/Terminus Map View 76x50 Tactical HUD 1 Map Filters NONE Filters SATURATION(80) Steam X RUN: ff0bf8b9-705e-4453-88da-422d787aecfa